[Event "NJSK 2024 Cm"]
[Site "Groningen, Netherlands"]
[Date "2024.05.01"]
[Round "5.6"]
[White "Barbier, Emma"]
[Black "Esvelt, Klio"]
[Result "1-0"]
[TimeControl "90min/40moves + 30min + 30sec/move"]
[WhiteElo "1473"]
[BlackElo "1353"]

1. e4 {[%clk 01:30:58]} {[%emt 00:00:02]} e5 {[%clk 01:30:58]} {[%emt
00:00:02]} 2. Nf3 {[%clk 01:31:23]} {[%emt 00:00:05]} Nc6 {[%clk 01:31:24]}
{[%emt 00:00:05]} 3. Nc3 {[%clk 01:31:50]} {[%emt 00:00:03]} Nf6 {[%clk
01:31:51]} {[%emt 00:00:03]} 4. Bc4 {[%clk 01:32:12]} {[%emt 00:00:08]} Bc5
{[%clk 01:32:19]} {[%emt 00:00:02]} 5. O-O {[%clk 01:32:36]} {[%emt 00:00:06]}
d6 {[%clk 01:32:45]} {[%emt 00:00:03]} 6. h3 {[%clk 01:33:02]} {[%emt
00:00:04]} Be6 {[%clk 01:33:12]} {[%emt 00:00:04]} 7. Bb3 {[%clk 01:33:26]}
{[%emt 00:00:06]} Qd7 {[%clk 01:33:28]} {[%emt 00:00:14]} 8. d3 {[%clk
01:33:31]} {[%emt 00:00:25]} h6 {[%clk 01:33:54]} {[%emt 00:00:04]} 9. Be3
{[%clk 01:33:47]} {[%emt 00:00:13]} Nd4 {[%clk 01:34:13]} {[%emt 00:00:11]} 10.
Bd2 {[%clk 01:28:30]} {[%emt 00:05:47]} O-O-O {[%clk 01:33:23]} {[%emt
00:01:20]} 11. Bxe6 {[%clk 01:28:39]} {[%emt 00:00:21]} fxe6 {[%clk 01:33:42]}
{[%emt 00:00:10]} 12. a3 {[%clk 01:28:45]} {[%emt 00:00:26]} d5 {[%clk
01:34:06]} {[%emt 00:00:06]} 13. Nxe5 {[%clk 01:28:44]} {[%emt 00:00:31]} Qe8
{[%clk 01:31:49]} {[%emt 00:02:45]} 14. exd5 {[%clk 01:27:47]} {[%emt
00:01:29]} exd5 {[%clk 01:31:21]} {[%emt 00:00:56]} 15. Re1 {[%clk 01:27:47]}
{[%emt 00:00:31]} Rf8 {[%clk 01:29:01]} {[%emt 00:02:51]} 16. b4 {[%clk
01:25:31]} {[%emt 00:02:47]} Bd6 {[%clk 01:27:37]} {[%emt 00:01:53]} 17. Ng4
{[%clk 01:24:52]} {[%emt 00:00:51]} Qg6 {[%clk 01:26:34]} {[%emt 00:01:41]} 18.
Nxf6 {[%clk 01:24:50]} {[%emt 00:00:42]} Qxf6 {[%clk 01:26:48]} {[%emt
00:00:12]} 19. Be3 {[%clk 01:22:54]} {[%emt 00:02:30]} Be5 {[%clk 01:24:37]}
{[%emt 00:02:41]} 20. Ra2 {[%clk 01:21:23]} {[%emt 00:02:00]} Bd6 {[%clk
01:21:50]} {[%emt 00:03:18]} 21. Qg4+ {[%clk 01:20:25]} {[%emt 00:01:27]} Nf5
{[%clk 01:21:20]} {[%emt 00:00:37]} 22. Nxd5 {[%clk 01:20:07]} {[%emt
00:01:11]} Qe5 {[%clk 01:21:28]} {[%emt 00:00:14]} 23. Nf4 {[%clk 01:18:03]}
{[%emt 00:02:42]} Kb8 {[%clk 01:21:30]} {[%emt 00:00:28]} 24. g3 {[%clk
01:17:41]} {[%emt 00:00:53]} Qc3 {[%clk 01:19:12]} {[%emt 00:02:35]} 25. Re2
{[%clk 01:16:26]} {[%emt 00:01:50]} Bxf4 {[%clk 01:18:53]} {[%emt 00:00:56]} 26.
Bxf4 {[%clk 01:15:50]} {[%emt 00:01:06]} Rde8 {[%clk 01:18:09]} {[%emt
00:01:13]} 27. Rxe8+ {[%clk 01:14:03]} {[%emt 00:02:18]} Rxe8 {[%clk 01:17:44]}
{[%emt 00:00:55]} 28. Qxf5 {[%clk 01:13:56]} {[%emt 00:00:37]} Re1+ {[%clk
01:17:24]} {[%emt 00:00:47]} 29. Kh2 {[%clk 01:14:17]} {[%emt 00:00:11]} Qc6
{[%clk 01:16:33]} {[%emt 00:01:20]} 30. Qf8+ {[%clk 01:14:22]} {[%emt
00:00:27]} Re8 {[%clk 01:16:38]} {[%emt 00:00:24]} 31. Qxg7 {[%clk 01:13:58]}
{[%emt 00:00:55]} b6 {[%clk 01:14:02]} {[%emt 00:03:07]} 32. Be3 {[%clk
01:13:58]} {[%emt 00:00:29]} Re6 {[%clk 01:13:07]} {[%emt 00:01:11]} 33. c4
{[%clk 01:11:58]} {[%emt 00:02:44]} Rd6 {[%clk 01:11:10]} {[%emt 00:02:10]} 34.
Rd2 {[%clk 01:11:32]} {[%emt 00:01:14]} Re6 {[%clk 01:08:42]} {[%emt 00:02:57]}
35. Qc3 {[%clk 01:11:03]} {[%emt 00:00:59]} h5 {[%clk 01:07:36]} {[%emt
00:01:35]} 36. d4 {[%clk 01:10:21]} {[%emt 00:01:14]} Rg6 {[%clk 01:07:24]}
{[%emt 00:00:18]} 37. d5 {[%clk 01:10:32]} {[%emt 00:00:43]} Qd7 {[%clk
01:06:44]} {[%emt 00:01:01]} 38. Qh8+ {[%clk 01:10:50]} {[%emt 00:00:21]} Kb7
{[%clk 01:06:52]} {[%emt 00:00:22]} 39. Qxh5 {[%clk 01:11:13]} {[%emt
00:00:06]} Rg7 {[%clk 01:06:49]} {[%emt 00:00:32]} 40. Qe5 {[%clk 01:10:00]}
{[%emt 00:01:44]} Rh7 {[%clk 01:07:04]} {[%emt 00:00:16]} 41. h4 {[%clk
01:10:02]} {[%emt 00:00:28]} Re7 {[%clk 01:06:12]} {[%emt 00:01:22]} 42. Qd4
{[%clk 01:10:06]} {[%emt 00:00:26]} c6 {[%clk 01:03:10]} {[%emt 00:03:32]} 43.
dxc6+ {[%clk 01:10:08]} {[%emt 00:00:28]} Qxc6 {[%clk 01:03:26]} {[%emt
00:00:14]} 44. Qd5 {[%clk 01:10:21]} {[%emt 00:00:18]} Qxd5 {[%clk 01:03:42]}
{[%emt 00:00:14]} 45. Rxd5 {[%clk 01:10:45]} {[%emt 00:00:05]} Rf7 {[%clk
01:03:53]} {[%emt 00:00:15]} 46. c5 {[%clk 01:11:05]} {[%emt 00:00:14]} bxc5
{[%clk 01:04:05]} {[%emt 00:00:18]} 47. Bxc5 {[%clk 01:11:27]} {[%emt
00:00:08]} a5 {[%clk 01:04:02]} {[%emt 00:00:34]} 48. Re5 {[%clk 01:11:37]}
{[%emt 00:00:18]} axb4 {[%clk 01:03:44]} {[%emt 00:00:49]} 49. axb4 {[%clk
01:11:29]} {[%emt 00:00:38]} Rf3 {[%clk 01:03:54]} {[%emt 00:00:15]} 50. h5
{[%clk 01:11:49]} {[%emt 00:00:16]} Rf6 {[%clk 01:04:08]} {[%emt 00:00:16]} 51.
g4 {[%clk 01:11:57]} {[%emt 00:00:22]} Rh6 {[%clk 01:03:48]} {[%emt 00:00:50]}
52. Kg3 {[%clk 01:12:10]} {[%emt 00:00:17]} Kc6 {[%clk 01:03:53]} {[%emt
00:00:25]} 53. Kh4 {[%clk 01:11:47]} {[%emt 00:00:53]} Rh8 {[%clk 01:03:58]}
{[%emt 00:00:24]} 54. g5 {[%emt 00:00:48]} Rd8 {[%clk 01:03:53]} 55. h6 {[%clk
01:12:22]} {[%emt 00:00:14]} Kb5 {[%clk 01:03:27]} {[%emt 00:00:56]} 56. h7
{[%clk 01:12:37]} {[%emt 00:00:15]} Ka4 {[%clk 01:03:46]} {[%emt 00:00:12]} 57.
g6 {[%clk 01:12:53]} {[%emt 00:00:12]} Kb5 {[%clk 01:03:51]} {[%emt 00:00:25]}
58. g7 {[%clk 01:13:12]} {[%emt 00:00:11]} Kc6 {[%clk 01:04:09]} {[%emt
00:00:12]} 59. g8=Q {[%clk 01:13:25]} {[%emt 00:00:18]} Rxg8 {[%clk 01:04:24]}
{[%emt 00:00:15]} 60. hxg8=Q {[%clk 01:13:43]} {[%emt 00:00:11]} Kc7 {[%clk
01:04:48]} {[%emt 00:00:06]} 61. Re6 {[%clk 01:13:46]} {[%emt 00:00:25]} Kb7
{[%clk 01:04:55]} {[%emt 00:00:26]} 62. Qf7+ {[%clk 01:14:02]} {[%emt
00:00:13]} Kc8 {[%clk 01:05:07]} {[%emt 00:00:17]} 63. Re8# {[%clk 01:13:48]}
{[%emt 00:00:15]} 1-0

[Event "NJSK 2024 Cm"]
[Site "Groningen, Netherlands"]
[Date "2024.05.01"]
[Round "5.7"]
[White "Jermin, Ayleanna"]
[Black "Schipper, Sarah"]
[Result "1-0"]
[TimeControl "90min/40moves + 30min + 30sec/move"]
[WhiteElo "1249"]
[BlackElo "1238"]

1. e4 {[%clk 01:30:57]} {[%emt 00:00:01]} e5 {[%clk 01:30:56]} {[%emt
00:00:05]} 2. Bc4 {[%clk 01:31:11]} {[%emt 00:00:16]} Nc6 {[%clk 01:30:14]}
{[%emt 00:01:12]} 3. Nf3 {[%clk 01:30:17]} {[%emt 00:01:24]} Bc5 {[%clk
01:28:45]} {[%emt 00:01:59]} 4. d3 {[%clk 01:29:53]} {[%emt 00:00:54]} h6
{[%clk 01:28:58]} {[%emt 00:00:18]} 5. a3 {[%clk 01:28:16]} {[%emt 00:02:06]}
Nf6 {[%clk 01:27:57]} {[%emt 00:01:30]} 6. b4 {[%clk 01:27:34]} {[%emt
00:01:13]} Bb6 {[%clk 01:24:57]} {[%emt 00:03:30]} 7. Bb2 {[%clk 01:26:00]}
{[%emt 00:02:04]} d6 {[%clk 01:24:45]} {[%emt 00:00:42]} 8. c3 {[%clk
01:24:33]} {[%emt 00:01:57]} d5 {[%clk 01:19:56]} {[%emt 00:05:20]} 9. exd5
{[%clk 01:23:44]} {[%emt 00:01:16]} Nxd5 {[%clk 01:20:02]} {[%emt 00:00:26]} 10.
Qb3 {[%clk 01:22:28]} {[%emt 00:01:46]} Be6 {[%clk 01:18:15]} {[%emt 00:02:17]}
11. O-O {[%clk 01:20:33]} {[%emt 00:02:25]} Qd7 {[%clk 01:13:25]} {[%emt
00:05:21]} 12. Re1 {[%clk 01:19:52]} {[%emt 00:01:10]} Qd6 {[%clk 01:06:19]}
{[%emt 00:07:36]} 13. d4 {[%clk 01:18:01]} {[%emt 00:02:21]} f6 {[%clk
01:01:13]} {[%emt 00:05:36]} 14. Nbd2 {[%clk 01:13:47]} {[%emt 00:04:43]} O-O-O
{[%clk 00:52:04]} {[%emt 00:09:40]} 15. Ne4 {[%clk 01:13:23]} {[%emt 00:00:53]}
Qd7 {[%clk 00:44:42]} {[%emt 00:07:52]} 16. a4 {[%clk 01:10:45]} {[%emt
00:03:08]} a6 {[%clk 00:38:59]} {[%emt 00:06:14]} 17. b5 {[%clk 01:08:37]}
{[%emt 00:02:38]} Na5 {[%clk 00:38:35]} {[%emt 00:00:54]} 18. Qa2 {[%clk
01:06:57]} {[%emt 00:02:10]} Nxc4 {[%clk 00:37:24]} {[%emt 00:01:40]} 19. bxa6
{[%clk 01:02:37]} {[%emt 00:04:50]} Na5 {[%clk 00:31:43]} {[%emt 00:06:12]} 20.
axb7+ {[%clk 01:01:37]} {[%emt 00:01:30]} Kxb7 {[%clk 00:31:44]} {[%emt
00:00:30]} 21. Qa3 {[%clk 00:59:32]} {[%emt 00:02:34]} Nf4 {[%clk 00:17:38]}
{[%emt 00:14:35]} 22. Qb4 {[%clk 00:58:24]} {[%emt 00:01:39]} Nd3 {[%clk
00:16:53]} {[%emt 00:01:15]} 23. Nc5+ {[%clk 00:57:37]} {[%emt 00:01:17]} Ka7
{[%clk 00:14:29]} {[%emt 00:02:54]} 24. Nxd3 {[%clk 00:55:17]} {[%emt
00:02:50]} Qc6 {[%clk 00:06:57]} {[%emt 00:08:02]} 25. Nc5 {[%clk 00:46:06]}
{[%emt 00:09:40]} Rd5 {[%clk 00:03:16]} {[%emt 00:04:12]} 26. c4 {[%clk
00:39:14]} {[%emt 00:07:22]} Rdd8 {[%clk 00:02:34]} {[%emt 00:01:13]} 27. Nxe6
{[%clk 00:37:23]} {[%emt 00:02:21]} Qxe6 {[%clk 00:02:49]} {[%emt 00:00:14]} 28.
c5 {[%clk 00:37:29]} {[%emt 00:00:23]} Nb3 {[%clk 00:02:21]} {[%emt 00:00:59]}
29. cxb6+ {[%clk 00:37:37]} {[%emt 00:00:21]} cxb6 {[%clk 00:02:35]} {[%emt
00:00:17]} 30. Ra3 {[%clk 00:37:07]} {[%emt 00:01:00]} Na5 {[%clk 00:02:49]}
{[%emt 00:00:16]} 31. Bc3 {[%clk 00:35:01]} {[%emt 00:02:36]} Rd5 {[%clk
00:02:47]} {[%emt 00:00:31]} 32. Qb2 {[%clk 00:34:06]} {[%emt 00:01:24]} Re8
{[%clk 00:02:35]} {[%emt 00:00:45]} 33. Bxa5 {[%clk 00:33:39]} {[%emt
00:00:57]} Rxa5 {[%clk 00:02:48]} {[%emt 00:00:17]} 34. Qc3 {[%clk 00:31:32]}
{[%emt 00:02:36]} Qd6 {[%clk 00:02:21]} {[%emt 00:00:58]} 35. Nd2 {[%clk
00:30:35]} {[%emt 00:01:25]} g5 {[%clk 00:02:36]} {[%emt 00:00:17]} 36. Nc4
{[%clk 00:30:35]} {[%emt 00:00:31]} Qe7 {[%clk 00:01:43]} {[%emt 00:01:23]} 37.
Nxa5 {[%clk 00:30:45]} {[%emt 00:00:19]} bxa5 {[%clk 00:01:44]} {[%emt
00:00:29]} 38. Qxa5+ {[%clk 00:30:51]} {[%emt 00:00:23]} Kb7 {[%clk 00:01:34]}
{[%emt 00:00:41]} 39. Qd5+ {[%clk 00:30:17]} {[%emt 00:01:04]} Ka7 {[%clk
00:01:27]} {[%emt 00:00:37]} 40. Raa1 {[%clk 00:30:18]} {[%emt 00:00:29]} Qd8
{[%clk 00:01:18]} {[%emt 00:00:39]} 41. Qc5+ {[%clk 00:30:15]} {[%emt
00:00:33]} Ka8 {[%clk 00:01:28]} {[%emt 00:00:20]} 42. d5 {[%clk 00:30:14]}
{[%emt 00:00:31]} Re7 {[%clk 00:01:36]} {[%emt 00:00:21]} 43. d6 {[%clk
00:30:16]} {[%emt 00:00:29]} Rb7 {[%clk 00:01:49]} {[%emt 00:00:16]} 44. Qd5
{[%clk 00:30:27]} {[%emt 00:00:19]} Kb8 {[%clk 00:02:05]} {[%emt 00:00:15]} 45.
Rab1 {[%clk 00:30:10]} {[%emt 00:00:46]} Rxb1 {[%clk 00:01:46]} {[%emt
00:00:50]} 46. Rxb1+ {[%clk 00:30:29]} {[%emt 00:00:10]} Kc8 {[%clk 00:01:40]}
{[%emt 00:00:36]} 47. Qb7# {[%clk 00:30:20]} {[%emt 00:00:40]} 1-0

[Event "NJSK 2024 Cm"]
[Site "Groningen, Netherlands"]
[Date "2024.05.02"]
[Round "6.1"]
[White "Roebers, Bregje"]
[Black "Koorevaar, Sarah-Joy"]
[Result "1/2-1/2"]
[TimeControl "90min/40moves + 30min + 30sec/move"]
[WhiteElo "1829"]
[BlackElo "1544"]

1. f4 {[%clk 01:30:57]} {[%emt 00:00:02]} d5 {[%clk 01:30:51]} {[%emt
00:00:10]} 2. Nf3 {[%clk 01:31:21]} {[%emt 00:00:05]} Bf5 {[%clk 01:30:38]}
{[%emt 00:00:43]} 3. g3 {[%clk 01:31:37]} {[%emt 00:00:14]} e6 {[%clk
01:30:21]} {[%emt 00:00:49]} 4. Bg2 {[%clk 01:31:37]} {[%emt 00:00:29]} Nc6
{[%clk 01:29:07]} {[%emt 00:01:45]} 5. O-O {[%clk 01:31:01]} {[%emt 00:01:05]}
Nf6 {[%clk 01:27:35]} {[%emt 00:02:02]} 6. d3 {[%clk 01:29:31]} {[%emt
00:01:59]} Qd6 {[%clk 01:25:06]} {[%emt 00:03:00]} 7. e3 {[%clk 01:16:47]}
{[%emt 00:13:15]} O-O-O {[%clk 01:24:33]} {[%emt 00:01:03]} 8. a3 {[%clk
01:14:28]} {[%emt 00:02:48]} e5 {[%clk 01:11:23]} {[%emt 00:13:40]} 9. Ng5
{[%clk 01:01:05]} {[%emt 00:13:52]} Qd7 {[%clk 00:55:38]} {[%emt 00:16:15]} 10.
fxe5 {[%clk 00:37:43]} {[%emt 00:23:53]} Bg4 {[%clk 00:47:00]} {[%emt
00:09:38]} 11. Nf3 {[%clk 00:29:20]} {[%emt 00:09:22]} Bxf3 {[%clk 00:45:42]}
{[%emt 00:01:49]} 12. Qxf3 {[%clk 00:29:37]} {[%emt 00:00:13]} Nxe5 {[%clk
00:45:05]} {[%emt 00:01:07]} 13. Qf5 {[%clk 00:27:40]} {[%emt 00:02:27]} Qe6
{[%clk 00:38:05]} {[%emt 00:07:30]} 14. Bh3 {[%clk 00:23:38]} {[%emt 00:04:32]}
Re8 {[%clk 00:33:15]} {[%emt 00:05:20]} 15. Nc3 {[%clk 00:19:08]} {[%emt
00:05:00]} c6 {[%clk 00:23:58]} {[%emt 00:09:47]} 16. Kg2 {[%clk 00:14:41]}
{[%emt 00:04:57]} Qxf5 {[%clk 00:20:51]} {[%emt 00:03:36]} 17. Rxf5 {[%clk
00:14:52]} {[%emt 00:00:19]} Kc7 {[%clk 00:17:06]} {[%emt 00:04:16]} 18. Bd2
{[%clk 00:14:57]} {[%emt 00:00:25]} Bd6 {[%clk 00:16:31]} {[%emt 00:01:05]} 19.
Raf1 {[%clk 00:14:33]} {[%emt 00:00:54]} h5 {[%clk 00:12:28]} {[%emt 00:04:33]}
20. Rg5 {[%clk 00:09:42]} {[%emt 00:05:21]} Rhg8 {[%clk 00:07:51]} {[%emt
00:05:07]} 21. Rgf5 {[%clk 00:08:29]} {[%emt 00:01:43]} Rh8 {[%clk 00:07:22]}
{[%emt 00:00:59]} 22. Ne2 {[%clk 00:08:06]} {[%emt 00:00:53]} Nfg4 {[%clk
00:05:52]} {[%emt 00:02:00]} 23. Bc1 {[%clk 00:02:56]} {[%emt 00:05:40]} g6
{[%clk 00:05:25]} {[%emt 00:00:57]} 24. R5f4 {[%clk 00:03:07]} {[%emt
00:00:19]} f5 {[%clk 00:05:27]} {[%emt 00:00:28]} 25. Nd4 {[%clk 00:02:54]}
{[%emt 00:00:43]} Nd7 {[%clk 00:04:55]} {[%emt 00:01:02]} 26. R4f3 {[%clk
00:03:08]} {[%emt 00:00:16]} Nde5 {[%clk 00:05:18]} {[%emt 00:00:07]} 1/2-1/2

[Event "NJSK 2024 Cm"]
[Site "Groningen, Netherlands"]
[Date "2024.05.02"]
[Round "6.2"]
[White "Jorritsma, Eli Alia"]
[Black "Hardeman, Imara"]
[Result "1-0"]
[TimeControl "90min/40moves + 30min + 30sec/move"]
[WhiteElo "1777"]
[BlackElo "1676"]

1. Nf3 {[%clk 01:30:57]} {[%emt 00:00:02]} d5 {[%clk 01:30:57]} {[%emt
00:00:04]} 2. b3 {[%clk 01:31:22]} {[%emt 00:00:05]} c6 {[%clk 01:31:21]}
{[%emt 00:00:06]} 3. Bb2 {[%clk 01:31:45]} {[%emt 00:00:07]} Bf5 {[%clk
01:31:13]} {[%emt 00:00:38]} 4. e3 {[%clk 01:31:55]} {[%emt 00:00:21]} e6
{[%clk 01:31:34]} {[%emt 00:00:09]} 5. d4 {[%clk 01:32:08]} {[%emt 00:00:15]}
Nf6 {[%clk 01:31:34]} {[%emt 00:00:31]} 6. Bd3 {[%clk 01:32:10]} {[%emt
00:00:28]} Bxd3 {[%clk 01:31:47]} {[%emt 00:00:17]} 7. Qxd3 {[%clk 01:32:31]}
{[%emt 00:00:09]} Bd6 {[%clk 01:31:55]} {[%emt 00:00:22]} 8. O-O {[%clk
01:32:31]} {[%emt 00:00:29]} O-O {[%clk 01:32:08]} {[%emt 00:00:18]} 9. Nbd2
{[%clk 01:32:12]} {[%emt 00:00:48]} Nbd7 {[%clk 01:31:38]} {[%emt 00:01:02]} 10.
c4 {[%clk 01:31:10]} {[%emt 00:01:32]} Rc8 {[%clk 01:30:10]} {[%emt 00:01:57]}
11. e4 {[%clk 01:24:11]} {[%emt 00:07:29]} dxe4 {[%clk 01:24:47]} {[%emt
00:05:53]} 12. Nxe4 {[%clk 01:24:33]} {[%emt 00:00:08]} Nxe4 {[%clk 01:25:10]}
{[%emt 00:00:07]} 13. Qxe4 {[%clk 01:24:55]} {[%emt 00:00:07]} Nf6 {[%clk
01:23:56]} {[%emt 00:01:45]} 14. Qc2 {[%clk 01:20:36]} {[%emt 00:04:47]} c5
{[%clk 01:21:25]} {[%emt 00:03:03]} 15. Rad1 {[%clk 01:16:29]} {[%emt
00:04:37]} cxd4 {[%clk 01:16:39]} {[%emt 00:05:16]} 16. Rxd4 {[%clk 01:15:41]}
{[%emt 00:01:17]} Qe7 {[%clk 01:15:52]} {[%emt 00:01:18]} 17. Rh4 {[%clk
01:13:43]} {[%emt 00:02:27]} e5 {[%clk 01:05:37]} {[%emt 00:10:46]} 18. g4
{[%clk 00:54:16]} {[%emt 00:19:57]} g6 {[%clk 01:01:17]} {[%emt 00:04:50]} 19.
Qd2 {[%clk 00:49:28]} {[%emt 00:05:17]} h5 {[%clk 00:53:50]} {[%emt 00:07:57]}
20. gxh5 {[%clk 00:47:21]} {[%emt 00:02:37]} Nxh5 {[%clk 00:53:33]} {[%emt
00:00:47]} 21. Qh6 {[%clk 00:43:21]} {[%emt 00:04:30]} Qf6 {[%clk 00:51:28]}
{[%emt 00:02:36]} 22. Rxh5 {[%clk 00:41:47]} {[%emt 00:02:03]} Qg7 {[%clk
00:50:05]} {[%emt 00:01:54]} 23. Qxg7+ {[%clk 00:41:58]} {[%emt 00:00:18]} Kxg7
{[%clk 00:50:30]} {[%emt 00:00:06]} 24. Bxe5+ {[%clk 00:41:34]} {[%emt
00:00:54]} Bxe5 {[%clk 00:50:38]} {[%emt 00:00:22]} 25. Rxe5 {[%clk 00:41:59]}
{[%emt 00:00:04]} Rcd8 {[%clk 00:50:07]} {[%emt 00:01:02]} 26. Re7 {[%clk
00:41:05]} {[%emt 00:01:23]} Rb8 {[%clk 00:49:59]} {[%emt 00:00:38]} 27. Rd1
{[%clk 00:40:57]} {[%emt 00:00:37]} a6 {[%clk 00:49:57]} {[%emt 00:00:33]} 28.
Rdd7 {[%clk 00:41:07]} {[%emt 00:00:19]} b6 {[%clk 00:50:13]} {[%emt 00:00:15]}
29. Ne5 {[%clk 00:41:09]} {[%emt 00:00:29]} 1-0

[Event "NJSK 2024 Cm"]
[Site "Groningen, Netherlands"]
[Date "2024.05.02"]
[Round "6.3"]
[White "Vermeulen, Ilona"]
[Black "Luong, Thao"]
[Result "0-1"]
[TimeControl "90min/40moves + 30min + 30sec/move"]
[WhiteElo "1427"]
[BlackElo "1687"]

1. d4 {[%clk 01:30:58]} {[%emt 00:00:02]} d5 {[%clk 01:30:56]} {[%emt
00:00:04]} 2. c4 {[%clk 01:31:20]} {[%emt 00:00:09]} e6 {[%clk 01:31:22]}
{[%emt 00:00:04]} 3. Nc3 {[%clk 01:31:16]} {[%emt 00:00:34]} Nf6 {[%clk
01:31:42]} {[%emt 00:00:09]} 4. Nf3 {[%clk 01:30:33]} {[%emt 00:01:13]} c6
{[%clk 01:31:10]} {[%emt 00:01:02]} 5. e3 {[%clk 01:29:27]} {[%emt 00:01:37]}
Nbd7 {[%clk 01:30:10]} {[%emt 00:01:30]} 6. Bd3 {[%clk 01:25:10]} {[%emt
00:04:47]} dxc4 {[%clk 01:28:13]} {[%emt 00:02:27]} 7. Bxc4 {[%clk 01:23:08]}
{[%emt 00:02:31]} Nb6 {[%clk 01:26:03]} {[%emt 00:02:40]} 8. Be2 {[%clk
01:20:18]} {[%emt 00:03:21]} Nbd5 {[%clk 01:23:06]} {[%emt 00:03:27]} 9. O-O
{[%clk 01:15:29]} {[%emt 00:05:19]} Bd6 {[%clk 01:22:35]} {[%emt 00:01:01]} 10.
Bd3 {[%clk 01:05:54]} {[%emt 00:10:04]} Qc7 {[%clk 01:19:54]} {[%emt 00:03:11]}
11. Ne4 {[%clk 01:03:07]} {[%emt 00:03:17]} Nxe4 {[%clk 01:19:07]} {[%emt
00:01:17]} 12. Bxe4 {[%clk 01:00:05]} {[%emt 00:03:33]} f5 {[%clk 01:13:58]}
{[%emt 00:05:38]} 13. Bxd5 {[%clk 00:59:43]} {[%emt 00:00:52]} exd5 {[%clk
01:14:05]} {[%emt 00:00:23]} 14. g3 {[%clk 00:58:18]} {[%emt 00:01:55]} h5
{[%clk 01:06:20]} {[%emt 00:08:15]} 15. Qd3 {[%clk 00:51:31]} {[%emt 00:07:17]}
Qf7 {[%clk 00:56:07]} {[%emt 00:10:41]} 16. Ne5 {[%clk 00:47:48]} {[%emt
00:04:15]} Bxe5 {[%clk 00:53:32]} {[%emt 00:03:05]} 17. dxe5 {[%clk 00:47:09]}
{[%emt 00:01:09]} h4 {[%clk 00:52:57]} {[%emt 00:01:05]} 18. b3 {[%clk
00:38:16]} {[%emt 00:09:24]} Qh5 {[%clk 00:47:00]} {[%emt 00:06:25]} 19. Qd1
{[%clk 00:36:12]} {[%emt 00:02:36]} Qg6 {[%clk 00:43:14]} {[%emt 00:04:14]} 20.
Qf3 {[%clk 00:35:25]} {[%emt 00:01:14]} Be6 {[%clk 00:40:07]} {[%emt 00:03:41]}
21. Kh1 {[%clk 00:32:37]} {[%emt 00:03:18]} d4 {[%clk 00:38:59]} {[%emt
00:01:38]} 22. Qf4 {[%clk 00:30:58]} {[%emt 00:02:09]} Bd5+ {[%clk 00:35:06]}
{[%emt 00:04:23]} 23. Kg1 {[%clk 00:30:06]} {[%emt 00:01:22]} d3 {[%clk
00:21:22]} {[%emt 00:14:15]} 24. Bb2 {[%clk 00:28:46]} {[%emt 00:01:50]} O-O-O
{[%clk 00:19:03]} {[%emt 00:02:47]} 25. Rfd1 {[%clk 00:28:09]} {[%emt
00:01:08]} hxg3 {[%clk 00:15:51]} {[%emt 00:03:41]} 26. Qxg3 {[%clk 00:26:08]}
{[%emt 00:02:31]} Qh5 {[%clk 00:11:46]} {[%emt 00:04:35]} 27. Rxd3 {[%clk
00:23:27]} {[%emt 00:03:12]} Qe2 {[%clk 00:11:25]} {[%emt 00:00:50]} 28. Rad1
{[%clk 00:19:50]} {[%emt 00:04:08]} Qxb2 {[%clk 00:11:09]} {[%emt 00:00:46]} 29.
R3d2 {[%clk 00:19:40]} {[%emt 00:00:41]} Qc3 {[%clk 00:10:29]} {[%emt
00:01:09]} 30. Qf4 {[%clk 00:19:00]} {[%emt 00:01:10]} Be4 {[%clk 00:09:11]}
{[%emt 00:01:48]} 31. Rxd8+ {[%clk 00:19:13]} {[%emt 00:00:17]} Rxd8 {[%clk
00:09:22]} {[%emt 00:00:19]} 32. Rxd8+ {[%clk 00:19:20]} {[%emt 00:00:23]} Kxd8
{[%clk 00:09:42]} {[%emt 00:00:10]} 33. Qh4+ {[%clk 00:19:30]} {[%emt
00:00:21]} Kd7 {[%clk 00:09:01]} {[%emt 00:01:10]} 34. h3 {[%clk 00:19:19]}
{[%emt 00:00:41]} Qe1+ {[%clk 00:09:05]} {[%emt 00:00:26]} 35. Kh2 {[%clk
00:19:41]} {[%emt 00:00:09]} Qh1+ {[%clk 00:09:22]} {[%emt 00:00:12]} 36. Kg3
{[%clk 00:19:44]} {[%emt 00:00:26]} Qf3+ {[%clk 00:09:39]} {[%emt 00:00:14]} 37.
Kh2 {[%clk 00:19:55]} {[%emt 00:00:19]} Qg2# {[%clk 00:10:06]} {[%emt
00:00:03]} 0-1